{"text_format":"1","workbook":"xlsx","n_sheets":7,"sheets":["Blatt 1","Blatt 2","Blatt 3","Blatt 4","Blatt 5","Blatt 6","Zusammenfassung"],"not_rendered":{"charts":0,"images":0,"macros":1,"external_links":0,"defined_names":0,"comments":7,"pivot_tables":0},"unopened":[],"bounds":{"document_bytes":16777216,"sheet_cells":100000,"rows_first":2000,"rows_last":500,"rows_between":2000,"halvings":0,"cell_chars":16384,"cell_head_chars":4096},"cells_cut":0,"cells_raw":0,"read":"whole","date_system":"1900"}

{"sheet":"Blatt 1","index":0,"n_rows":73,"n_cols":30,"rows_kept":73,"cut":false,"hidden":false,"merged":[[25,23,25,26],[26,23,26,26],[41,23,41,26],[42,23,42,26],[31,23,31,26],[32,23,32,26],[71,1,71,6],[31,1,31,18],[38,19,38,22],[49,19,49,22],[42,1,43,18],[23,1,26,18],[20,19,20,22],[21,19,21,22],[22,19,22,22],[23,19,23,22],[21,1,22,18],[33,1,33,16],[33,17,33,18],[33,19,33,22],[34,19,34,22],[35,19,35,22],[24,19,24,22],[25,19,25,22],[26,19,26,22],[30,19,30,22],[42,19,42,22],[31,19,31,22],[32,19,32,22],[54,19,54,22],[0,0,0,2],[49,23,49,26],[53,19,53,22],[53,23,53,26],[38,23,38,26],[40,19,40,22],[40,23,40,26],[43,19,43,22],[43,23,43,26],[37,19,37,22],[51,1,52,18],[45,19,45,22],[3,0,3,26],[10,17,10,26],[9,15,9,16],[9,11,9,14],[9,17,9,26],[12,6,12,26],[19,23,19,26],[17,19,17,26],[17,0,20,18],[18,19,18,26],[38,1,39,18],[40,1,40,17],[6,2,6,26],[29,19,29,22],[29,23,29,26],[52,19,52,22],[52,23,52,26],[28,1,29,18],[27,19,27,22],[27,23,27,26],[50,19,50,22],[50,23,50,26],[45,23,45,26],[35,23,35,26],[36,19,36,22],[36,23,36,26],[15,8,15,9],[45,1,46,18],[49,1,49,17],[35,1,37,18],[22,23,22,26],[20,23,20,26],[23,23,23,26],[19,19,19,22],[30,23,30,26],[34,23,34,26],[66,0,67,29],[58,1,58,29],[59,1,59,29],[60,1,60,29],[57,1,57,29],[61,1,62,29],[63,1,64,29],[17,28,17,29],[18,28,18,29],[47,1,47,17],[47,19,47,22],[47,23,47,26],[37,23,37,26],[44,19,44,22],[44,23,44,26],[41,19,41,22],[54,23,54,26],[48,19,48,22],[48,23,48,26],[54,1,54,16],[54,17,54,18],[21,23,21,26],[33,23,33,26],[24,23,24,26]]}
["Anlage: ",null,null,"Berechnung der Umsatzerlöse aus bodengebundener Produktion"]
[null,null,null,"zum Antrag auf Gewährung von Zuwendungen zur Förderung der Diversifzierung"]
[]
[]
["Antragstellendes Unternehmen (Name, Vorname, ggf. Unternehmensbezeichnung)"]
[]
[null,null,"Der Unternehmer hat, außer der Bewirtschaftung des antragstellenden landwirtschaftlichen Unternehmens, keine weiteren Erlöse aus gewerblichen Nebenbetriebe, Gewerbebetrieb und/oder selbständiger Tätigkeit.1"]
[]
[]
[null,null,null,null,null,null,null,null,null,null,null,null,null,null,null,null,null,"Unternehmernummer Antragsteller"]
[]
[]
[]
[null,null,null,null,null,null,"(Name, Vorname)"]
[]
[null,null,null,null,null,null,null,"mit ",null,null,"% Anteil am antragstellendes Unternehmen"]
[]
["Der genannte antragstellende Einzelunternehmer / Gesellschafter\nhat folgende Umsatzerlöse aus dem antragstellenden Unternehmen:",null,null,null,null,null,null,null,null,null,null,null,null,null,null,null,null,null,null,"Wirtschaftsjahr (anteilig)",null,null,null,null,null,null,null,null,"Wirtschaftsjahr (100%)"]
[null,null,null,null,null,null,null,null,null,null,null,null,null,null,null,null,null,null,null,"EUR",null,null,null,null,null,null,null,null,{"$f":"T19","v":"EUR"}]
[null,null,null,null,null,null,null,null,null,null,null,null,null,null,null,null,null,null,null,"Vorjahr",null,null,null,"akt. Jahr",null,null,null,null,{"$f":"T20","v":"Vorjahr"},{"$f":"X20","v":"akt. Jahr"}]
[null,null,null,null,null,null,null,null,null,null,null,null,null,null,null,null,null,null,null,{"$f":"AC21","v":0},null,null,null,{"$f":"AD21","v":0}]
["1.","Umsatzerlöse im Rahmen der einkommensteuerrechtlichen Einkunftsermittlung aus Land- und Forstwirtschaft"]
[]
["1.1","Umsatzerlöse aus pflanzlichen oder tierischen Erzeugnissen, die durch Bodenbewirtschaftung oder durch mit Bodenbewirtschaftung verbundene Tierhaltung gemäß Bewertungsgesetz gewonnen werden inkl. Bestandsveränderung"]
[]
[]
[null,null,null,null,null,null,null,null,null,null,null,null,null,null,null,null,null,null,null,{"$f":"ROUND((AC27*$I$16/100),0)","v":0},null,null,null,{"$f":"ROUND((AD27*$I$16/100),0)","v":0}]
[]
["1.2","Umsatzerlöse aus Direktvermarktung land- und forstwirtschaftlicher Erzeugnisse, sonstigen Bereichen (Urlaub auf dem Bauerhof, außerbetrieblicher Maschineneinsatz)2"]
[null,null,null,null,null,null,null,null,null,null,null,null,null,null,null,null,null,null,null,{"$f":"ROUND((AC30*$I$16/100),0)","v":0},null,null,null,{"$f":"ROUND((AD30*$I$16/100),0)","v":0}]
[]
["1.3","Zulagen und Zuschüsse (BMELV-Code 2449, etc.):",null,null,null,null,null,null,null,null,null,null,null,null,null,null,null,null,null,{"$f":"ROUND((AC32*$I$16/100),0)","v":0},null,null,null,{"$f":"ROUND((AD32*$I$16/100),0)","v":0}]
[]
[null,"Summe der Nrn. 1.1 und 1.2 (= Summe 1)",null,null,null,null,null,null,null,null,null,null,null,null,null,null,null,null,null,{"$f":"T27+T30+T32","v":0},null,null,{"$f":"SUM(W27+#REF!+W32)","v":{"$error":"#REF!"}},{"$f":"X27+X30+X32","v":0},null,null,{"$f":"SUM(AA27+#REF!+AA32)","v":{"$error":"#REF!"}},null,{"$f":"AC27+AC30+AC32","v":0},{"$f":"AD27+AD30+AD32","v":0}]
[]
["2.","Umsatzerlöse im Rahmen der einkommensteuerrechtlichen Einkunfts-ermittlung aus Gewerbebetrieb und aus Land- und Forstwirtschaft ohne eigene Bodenbewirtschaftung"]
[]
[]
["2.1","gewerbliche Umsatzerlöse im landwirtschaftl. Betrieb aus Handel, Dienst-leistungen, Nebenbetriebe (z.B. Hofladen) (BMELV-Code 2320 - 2338, etc.):"]
[]
[null,null,null,null,null,null,null,null,null,null,null,null,null,null,null,null,null,null,null,{"$f":"ROUND((AC41*$I$16/100),0)","v":0},null,null,null,{"$f":"ROUND((AD41*$I$16/100),0)","v":0}]
[]
["2.2","Pacht- und Mieterträge des antragstellenden Unternehmens (BMELV-Code 2450 + 2451, etc.)"]
[null,null,null,null,null,null,null,null,null,null,null,null,null,null,null,null,null,null,null,{"$f":"ROUND((AC44*$I$16/100),0)","v":0},null,null,null,{"$f":"ROUND((AD44*$I$16/100),0)","v":0}]
[]
["2.3","Umsatzerlöse aus folgenden beteiligten Gewerbebetrieb (z.B. Bauernhofcafe, Ferienwohnungen, Pferdepension, Photovoltaik, Biogas, Maschineneinsatz):"]
[]
["a",null,null,null,null,null,null,null,null,null,null,null,null,null,null,null,null,null,null,{"$f":"ROUND(($I$16*AC48/100),0)","v":0},null,null,null,{"$f":"ROUND(($I$16*AD48/100),0)","v":0}]
[]
["b",null,null,null,null,null,null,null,null,null,null,null,null,null,null,null,null,null,null,{"$f":"ROUND((AC50),0)","v":0},null,null,null,{"$f":"ROUND((AD50),0)","v":0}]
[]
["2.4","Umsatzerlöse aus selbständiger Arbeit (z.B. freiberufliche Tätigkeiten wie Referententätigkeit)"]
[null,null,null,null,null,null,null,null,null,null,null,null,null,null,null,null,null,null,null,{"$f":"ROUND((AC53),0)","v":0},null,null,null,{"$f":"ROUND((AD53),0)","v":0}]
[]
[null,"Summe der Nrn. 2.1, 2.2 und 2.3 (= Summe 2)",null,null,null,null,null,null,null,null,null,null,null,null,null,null,null,null,null,{"$f":"T41+T44+T50+T48+T53","v":0},null,null,null,{"$f":"X41+X44+X50+X48+X53","v":0},null,null,null,null,{"$f":"AC41+AC44+AC48+AC50+AC53","v":0},{"$f":"AD41+AD44+AD48+AD50+AD53","v":0}]
[]
["Hinweise:"]
["1","Diese Anlage ist dann nicht auszufüllen."]
["2","Bei Nr. 1.2 darf nur eine Eintragung erfolgen, wenn diese Umsatzerlöse in die einkommenssteuerliche Einkunftsermittlung aus Land- und Forstwirtschaft des antragstellenden Unternehmens eingehen. Ansonsten sind diese Erlöse bei Nr. 2.2 zu erfassen."]
["·","Bei Gesellschaften (auch in Kooperationen) ist die Anlage für jeden Gesellschafter einzeln erforderlich. Auch für Gesellschafter deren Kapitalanteil kleiner als 5% ist, ist die Anlage erforderlich."]
["·","Bei Kooperationen sind alle Umsatzerlösen der beteiligten Kooperationspartner zu ermitteln."]
["·","Maßgeblich sind die im Durchschnitt der Berichtsjahre erzielten Umsatzerlöse. Es sind immer die kompletten Umsatzerlöse aus den Buchabschlüssen zu erfassen."]
[]
["·","Als Anlagen sind die der Berechnung zugrundeliegenden Jahresabschlüsse und die entsprechenden Gesellschaftsverträge/Kooperationsvereinbarungen vorzulegen."]
[]
[]
["Mir / uns ist bekannt, dass das ausgefüllte Formblatt als Nachweis zur Erfüllung der Zuwendungsberechtigung beim Direktor der Landwirtschaftskammer NRW als Landesbeauftragter - EU-Zahlstelle - vorgelegt wird."]
[]
[]
[]
[]
[]
[null,"Ort, Datum",null,null,null,null,null,null,null,null,null,null,null,null,null,null,null,"Name Buchstelle, Stempel, Unterschrift Bearbeiter / -in"]

{"sheet":"Blatt 2","index":1,"n_rows":73,"n_cols":30,"rows_kept":73,"cut":false,"hidden":false,"merged":[[0,0,0,2],[3,0,3,26],[6,2,6,26],[9,11,9,14],[9,15,9,16],[9,17,9,26],[10,17,10,26],[12,6,12,26],[15,8,15,9],[17,0,20,18],[17,19,17,26],[18,19,18,26],[19,19,19,22],[19,23,19,26],[20,19,20,22],[20,23,20,26],[21,1,22,18],[21,19,21,22],[21,23,21,26],[22,19,22,22],[22,23,22,26],[23,1,26,18],[23,19,23,22],[23,23,23,26],[24,19,24,22],[24,23,24,26],[25,19,25,22],[25,23,25,26],[26,19,26,22],[26,23,26,26],[27,19,27,22],[27,23,27,26],[28,1,29,18],[29,19,29,22],[29,23,29,26],[30,19,30,22],[30,23,30,26],[31,1,31,18],[31,19,31,22],[31,23,31,26],[32,19,32,22],[32,23,32,26],[33,1,33,16],[33,17,33,18],[33,19,33,22],[33,23,33,26],[34,19,34,22],[34,23,34,26],[35,1,37,18],[35,19,35,22],[35,23,35,26],[36,19,36,22],[36,23,36,26],[37,19,37,22],[37,23,37,26],[38,1,39,18],[38,19,38,22],[38,23,38,26],[40,1,40,17],[40,19,40,22],[40,23,40,26],[41,19,41,22],[41,23,41,26],[42,1,43,18],[42,19,42,22],[42,23,42,26],[43,19,43,22],[43,23,43,26],[71,1,71,6],[59,1,59,29],[60,1,60,29],[61,1,62,29],[63,1,64,29],[54,1,54,16],[54,17,54,18],[54,19,54,22],[54,23,54,26],[57,1,57,29],[66,0,67,29],[17,28,17,29],[18,28,18,29],[15,28,15,29],[45,23,45,26],[47,1,47,17],[47,19,47,22],[47,23,47,26],[58,1,58,29],[50,19,50,22],[50,23,50,26],[51,1,52,18],[52,19,52,22],[52,23,52,26],[53,19,53,22],[53,23,53,26],[44,19,44,22],[44,23,44,26],[45,1,46,18],[45,19,45,22],[49,1,49,17],[49,19,49,22],[49,23,49,26],[48,19,48,22],[48,23,48,26]]}
["Anlage: ",null,null,"Berechnung der Umsatzerlöse aus bodengebundener Produktion"]
[null,null,null,"zum Antrag auf Gewährung von Zuwendungen zur Förderung der Diversifzierung"]
[]
[{"$f":"'Blatt 1'!A4:AA4","v":0}]
["Antragstellendes Unternehmen (Name, Vorname, ggf. Unternehmensbezeichnung)"]
[]
[null,null,"Der Unternehmer hat, außer der Bewirtschaftung des antragstellenden landwirtschaftlichen Unternehmens, keine weiteren Erlöse aus gewerblichen Nebenbetriebe, Gewerbebetrieb und/oder selbständiger Tätigkeit.1"]
[]
[]
[null,null,null,null,null,null,null,null,null,null,null,null,null,null,null,null,null,"Unternehmernummer Antragsteller"]
[null,null,null,null,null,null,null,null,null,null,null,null,null,null,null,null,null,{"$f":"'Blatt 1'!R11:AA11","v":0}]
[]
[]
[null,null,null,null,null,null,"(Name, Vorname)"]
[]
[null,null,null,null,null,null,null,"mit ",null,null,"% Anteil am antragstellendes Unternehmen"]
[]
["Der genannte antragstellende Einzelunternehmer / Gesellschafter\nhat folgende Umsatzerlöse aus dem antragstellenden Unternehmen:",null,null,null,null,null,null,null,null,null,null,null,null,null,null,null,null,null,null,"Wirtschaftsjahr (anteilig)",null,null,null,null,null,null,null,null,"Wirtschaftsjahr (100%)"]
[null,null,null,null,null,null,null,null,null,null,null,null,null,null,null,null,null,null,null,"EUR",null,null,null,null,null,null,null,null,{"$f":"T19","v":"EUR"}]
[null,null,null,null,null,null,null,null,null,null,null,null,null,null,null,null,null,null,null,"Vorjahr",null,null,null,"akt. Jahr",null,null,null,null,{"$f":"T20","v":"Vorjahr"},{"$f":"X20","v":"akt. Jahr"}]
[null,null,null,null,null,null,null,null,null,null,null,null,null,null,null,null,null,null,null,{"$f":"'Blatt 1'!T21:W21","v":0},null,null,null,{"$f":"'Blatt 1'!X21:AA21","v":0},null,null,null,null,{"$f":"'Blatt 1'!AC21","v":0},{"$f":"'Blatt 1'!AD21","v":0}]
["1.","Umsatzerlöse im Rahmen der einkommensteuerrechtlichen Einkunftsermittlung aus Land- und Forstwirtschaft"]
[]
["1.1","Umsatzerlöse aus pflanzlichen oder tierischen Erzeugnissen, die durch Bodenbewirtschaftung oder durch mit Bodenbewirtschaftung verbundene Tierhaltung gemäß Bewertungsgesetz gewonnen werden inkl. Bestandsveränderung"]
[]
[]
[null,null,null,null,null,null,null,null,null,null,null,null,null,null,null,null,null,null,null,{"$f":"ROUND((AC27*$I$16/100),0)","v":0},null,null,null,{"$f":"ROUND((AD27*$I$16/100),0)","v":0},null,null,null,null,{"$f":"'Blatt 1'!AC27","v":0},{"$f":"'Blatt 1'!AD27","v":0}]
[]
["1.2","Umsatzerlöse aus Direktvermarktung land- und forstwirtschaftlicher Erzeugnisse, sonstigen Bereichen (Urlaub auf dem Bauerhof, außerbetrieblicher Maschineneinsatz)2"]
[null,null,null,null,null,null,null,null,null,null,null,null,null,null,null,null,null,null,null,{"$f":"ROUND((AC30*$I$16/100),0)","v":0},null,null,null,{"$f":"ROUND((AD30*$I$16/100),0)","v":0},null,null,null,null,{"$f":"'Blatt 1'!AC30","v":0},{"$f":"'Blatt 1'!AD30","v":0}]
[]
["1.3","Zulagen und Zuschüsse (BMELV-Code 2449, etc.):",null,null,null,null,null,null,null,null,null,null,null,null,null,null,null,null,null,{"$f":"ROUND((AC32*$I$16/100),0)","v":0},null,null,null,{"$f":"ROUND((AD32*$I$16/100),0)","v":0},null,null,null,null,{"$f":"'Blatt 1'!AC32","v":0},{"$f":"'Blatt 1'!AD32","v":0}]
[]
[null,"Summe der Nrn. 1.1 und 1.2 (= Summe 1)",null,null,null,null,null,null,null,null,null,null,null,null,null,null,null,null,null,{"$f":"T27+T30+T32","v":0},null,null,{"$f":"SUM(W27+#REF!+W32)","v":{"$error":"#REF!"}},{"$f":"X27+X30+X32","v":0},null,null,{"$f":"SUM(AA27+#REF!+AA32)","v":{"$error":"#REF!"}},null,{"$f":"AC27+AC30+AC32","v":0},{"$f":"AD27+AD30+AD32","v":0}]
[]
["2.","Umsatzerlöse im Rahmen der einkommensteuerrechtlichen Einkunfts-ermittlung aus Gewerbebetrieb und aus Land- und Forstwirtschaft ohne eigene Bodenbewirtschaftung"]
[]
[]
["2.1","gewerbliche Umsatzerlöse im landwirtschaftl. Betrieb aus Handel, Dienst-leistungen, Nebenbetriebe (z.B. Hofladen) (BMELV-Code 2320 - 2338, etc.):"]
[]
[null,{"$f":"'Blatt 1'!B41:R41","v":0},null,null,null,null,null,null,null,null,null,null,null,null,null,null,null,null,null,{"$f":"ROUND((AC41*$I$16/100),0)","v":0},null,null,null,{"$f":"ROUND((AD41*$I$16/100),0)","v":0},null,null,null,null,{"$f":"'Blatt 1'!AC41","v":0},{"$f":"'Blatt 1'!AD41","v":0}]
[]
["2.2","Pacht- und Mieterträge des antragstellenden Unternehmens (BMELV-Code 2450 + 2451, etc.)"]
[null,null,null,null,null,null,null,null,null,null,null,null,null,null,null,null,null,null,null,{"$f":"ROUND((AC44*$I$16/100),0)","v":0},null,null,null,{"$f":"ROUND((AD44*$I$16/100),0)","v":0},null,null,null,null,{"$f":"'Blatt 1'!AC44","v":0},{"$f":"'Blatt 1'!AD44","v":0}]
[]
["2.3","Umsatzerlöse aus folgenden beteiligten Gewerbebetrieb (z.B. Bauernhofcafe, Ferienwohnungen, Pferdepension, Photovoltaik, Biogas, Maschineneinsatz):"]
[]
["a",null,null,null,null,null,null,null,null,null,null,null,null,null,null,null,null,null,null,{"$f":"ROUND(($I$16*AC48/100),0)","v":0},null,null,null,{"$f":"ROUND(($I$16*AD48/100),0)","v":0},null,null,null,null,{"$f":"'Blatt 1'!AC48","v":0},{"$f":"'Blatt 1'!AD48","v":0}]
[]
["b",null,null,null,null,null,null,null,null,null,null,null,null,null,null,null,null,null,null,{"$f":"ROUND((AC50),0)","v":0},null,null,null,{"$f":"ROUND((AD50),0)","v":0}]
[]
["2.4","Umsatzerlöse aus selbständiger Arbeit (z.B. freiberufliche Tätigkeiten wie Referententätigkeit)"]
[null,null,null,null,null,null,null,null,null,null,null,null,null,null,null,null,null,null,null,{"$f":"ROUND((AC53),0)","v":0},null,null,null,{"$f":"ROUND((AD53),0)","v":0}]
[]
[null,"Summe der Nrn. 2.1, 2.2 und 2.3 (= Summe 2)",null,null,null,null,null,null,null,null,null,null,null,null,null,null,null,null,null,{"$f":"T41+T44+T50+T48+T53","v":0},null,null,null,{"$f":"X41+X44+X50+X48+X53","v":0},null,null,null,null,{"$f":"AC41+AC44+AC48+AC50+AC53","v":0},{"$f":"AD41+AD44+AD48+AD50+AD53","v":0}]
[]
["Hinweise:"]
["1","Diese Anlage ist dann nicht auszufüllen."]
["2","Bei Nr. 1.2 darf nur eine Eintragung erfolgen, wenn diese Umsatzerlöse in die einkommenssteuerliche Einkunftsermittlung aus Land- und Forstwirtschaft des antragstellenden Unternehmens eingehen. Ansonsten sind diese Erlöse bei Nr. 2.2 zu erfassen."]
["·","Bei Gesellschaften (auch in Kooperationen) ist die Anlage für jeden Gesellschafter einzeln erforderlich. Auch für Gesellschafter deren Kapitalanteil kleiner als 5% ist, ist die Anlage erforderlich."]
["·","Bei Kooperationen sind alle Umsatzerlösen der beteiligten Kooperationspartner zu ermitteln."]
["·","Maßgeblich sind die im Durchschnitt der Berichtsjahre erzielten Umsatzerlöse. Es sind immer die kompletten Umsatzerlöse aus den Buchabschlüssen zu erfassen."]
[]
["·","Als Anlagen sind die der Berechnung zugrundeliegenden Jahresabschlüsse und die entsprechenden Gesellschaftsverträge/Kooperationsvereinbarungen vorzulegen."]
[]
[]
["Mir / uns ist bekannt, dass das ausgefüllte Formblatt als Nachweis zur Erfüllung der Zuwendungsberechtigung beim Direktor der Landwirtschaftskammer NRW als Landesbeauftragter - EU-Zahlstelle - vorgelegt wird."]
[]
[]
[]
[]
[null,{"$f":"'Blatt 1'!B72:G72","v":0}]
[null,"Ort, Datum",null,null,null,null,null,null,null,null,null,null,null,null,null,null,null,"Name Buchstelle, Stempel, Unterschrift Bearbeiter / -in"]

{"sheet":"Blatt 3","index":2,"n_rows":73,"n_cols":30,"rows_kept":73,"cut":false,"hidden":false,"merged":[[0,0,0,2],[3,0,3,26],[6,2,6,26],[9,11,9,14],[9,15,9,16],[9,17,9,26],[10,17,10,26],[12,6,12,26],[15,8,15,9],[17,0,20,18],[17,19,17,26],[18,19,18,26],[19,19,19,22],[19,23,19,26],[20,19,20,22],[20,23,20,26],[21,1,22,18],[21,19,21,22],[21,23,21,26],[22,19,22,22],[22,23,22,26],[23,1,26,18],[23,19,23,22],[23,23,23,26],[24,19,24,22],[24,23,24,26],[25,19,25,22],[25,23,25,26],[26,19,26,22],[26,23,26,26],[27,19,27,22],[27,23,27,26],[28,1,29,18],[29,19,29,22],[29,23,29,26],[30,19,30,22],[30,23,30,26],[31,1,31,18],[31,19,31,22],[31,23,31,26],[32,19,32,22],[32,23,32,26],[33,1,33,16],[33,17,33,18],[33,19,33,22],[33,23,33,26],[34,19,34,22],[34,23,34,26],[35,1,37,18],[35,19,35,22],[35,23,35,26],[36,19,36,22],[36,23,36,26],[37,19,37,22],[37,23,37,26],[38,1,39,18],[38,19,38,22],[38,23,38,26],[40,1,40,17],[40,19,40,22],[40,23,40,26],[41,19,41,22],[41,23,41,26],[42,1,43,18],[42,19,42,22],[42,23,42,26],[43,19,43,22],[43,23,43,26],[71,1,71,6],[59,1,59,29],[60,1,60,29],[61,1,62,29],[63,1,64,29],[54,1,54,16],[54,17,54,18],[54,19,54,22],[54,23,54,26],[57,1,57,29],[66,0,67,29],[15,28,15,29],[17,28,17,29],[18,28,18,29],[45,23,45,26],[47,1,47,17],[47,19,47,22],[47,23,47,26],[58,1,58,29],[50,19,50,22],[50,23,50,26],[51,1,52,18],[52,19,52,22],[52,23,52,26],[53,19,53,22],[53,23,53,26],[44,19,44,22],[44,23,44,26],[45,1,46,18],[45,19,45,22],[49,1,49,17],[49,19,49,22],[49,23,49,26],[48,19,48,22],[48,23,48,26]]}
["Anlage: ",null,null,"Berechnung der Umsatzerlöse aus bodengebundener Produktion"]
[null,null,null,"zum Antrag auf Gewährung von Zuwendungen zur Förderung der Diversifzierung"]
[]
[{"$f":"'Blatt 1'!A4:AA4","v":0}]
["Antragstellendes Unternehmen (Name, Vorname, ggf. Unternehmensbezeichnung)"]
[]
[null,null,"Der Unternehmer hat, außer der Bewirtschaftung des antragstellenden landwirtschaftlichen Unternehmens, keine weiteren Erlöse aus gewerblichen Nebenbetriebe, Gewerbebetrieb und/oder selbständiger Tätigkeit.1"]
[]
[]
[null,null,null,null,null,null,null,null,null,null,null,null,null,null,null,null,null,"Unternehmernummer Antragsteller"]
[null,null,null,null,null,null,null,null,null,null,null,null,null,null,null,null,null,{"$f":"'Blatt 1'!R11:AA11","v":0}]
[]
[]
[null,null,null,null,null,null,"(Name, Vorname)"]
[]
[null,null,null,null,null,null,null,"mit ",null,null,"% Anteil am antragstellendes Unternehmen"]
[]
["Der genannte antragstellende Einzelunternehmer / Gesellschafter\nhat folgende Umsatzerlöse aus dem antragstellenden Unternehmen:",null,null,null,null,null,null,null,null,null,null,null,null,null,null,null,null,null,null,"Wirtschaftsjahr (anteilig)",null,null,null,null,null,null,null,null,"Wirtschaftsjahr (100%)"]
[null,null,null,null,null,null,null,null,null,null,null,null,null,null,null,null,null,null,null,"EUR",null,null,null,null,null,null,null,null,{"$f":"T19","v":"EUR"}]
[null,null,null,null,null,null,null,null,null,null,null,null,null,null,null,null,null,null,null,"Vorjahr",null,null,null,"akt. Jahr",null,null,null,null,{"$f":"T20","v":"Vorjahr"},{"$f":"X20","v":"akt. Jahr"}]
[null,null,null,null,null,null,null,null,null,null,null,null,null,null,null,null,null,null,null,{"$f":"'Blatt 1'!T21:W21","v":0},null,null,null,{"$f":"'Blatt 1'!X21:AA21","v":0},null,null,null,null,{"$f":"'Blatt 1'!AC21","v":0},{"$f":"'Blatt 1'!AD21","v":0}]
["1.","Umsatzerlöse im Rahmen der einkommensteuerrechtlichen Einkunftsermittlung aus Land- und Forstwirtschaft"]
[]
["1.1","Umsatzerlöse aus pflanzlichen oder tierischen Erzeugnissen, die durch Bodenbewirtschaftung oder durch mit Bodenbewirtschaftung verbundene Tierhaltung gemäß Bewertungsgesetz gewonnen werden inkl. Bestandsveränderung"]
[]
[]
[null,null,null,null,null,null,null,null,null,null,null,null,null,null,null,null,null,null,null,{"$f":"ROUND((AC27*$I$16/100),0)","v":0},null,null,null,{"$f":"ROUND((AD27*$I$16/100),0)","v":0},null,null,null,null,{"$f":"'Blatt 1'!AC27","v":0},{"$f":"'Blatt 1'!AD27","v":0}]
[]
["1.2","Umsatzerlöse aus Direktvermarktung land- und forstwirtschaftlicher Erzeugnisse, sonstigen Bereichen (Urlaub auf dem Bauerhof, außerbetrieblicher Maschineneinsatz)2"]
[null,null,null,null,null,null,null,null,null,null,null,null,null,null,null,null,null,null,null,{"$f":"ROUND((AC30*$I$16/100),0)","v":0},null,null,null,{"$f":"ROUND((AD30*$I$16/100),0)","v":0},null,null,null,null,{"$f":"'Blatt 1'!AC30","v":0},{"$f":"'Blatt 1'!AD30","v":0}]
[]
["1.3","Zulagen und Zuschüsse (BMELV-Code 2449, etc.):",null,null,null,null,null,null,null,null,null,null,null,null,null,null,null,null,null,{"$f":"ROUND((AC32*$I$16/100),0)","v":0},null,null,null,{"$f":"ROUND((AD32*$I$16/100),0)","v":0},null,null,null,null,{"$f":"'Blatt 1'!AC32","v":0},{"$f":"'Blatt 1'!AD32","v":0}]
[]
[null,"Summe der Nrn. 1.1 und 1.2 (= Summe 1)",null,null,null,null,null,null,null,null,null,null,null,null,null,null,null,null,null,{"$f":"T27+T30+T32","v":0},null,null,{"$f":"SUM(W27+#REF!+W32)","v":{"$error":"#REF!"}},{"$f":"X27+X30+X32","v":0},null,null,{"$f":"SUM(AA27+#REF!+AA32)","v":{"$error":"#REF!"}},null,{"$f":"AC27+AC30+AC32","v":0},{"$f":"AD27+AD30+AD32","v":0}]
[]
["2.","Umsatzerlöse im Rahmen der einkommensteuerrechtlichen Einkunfts-ermittlung aus Gewerbebetrieb und aus Land- und Forstwirtschaft ohne eigene Bodenbewirtschaftung"]
[]
[]
["2.1","gewerbliche Umsatzerlöse im landwirtschaftl. Betrieb aus Handel, Dienst-leistungen, Nebenbetriebe (z.B. Hofladen) (BMELV-Code 2320 - 2338, etc.):"]
[]
[null,{"$f":"'Blatt 1'!B41:R41","v":0},null,null,null,null,null,null,null,null,null,null,null,null,null,null,null,null,null,{"$f":"ROUND((AC41*$I$16/100),0)","v":0},null,null,null,{"$f":"ROUND((AD41*$I$16/100),0)","v":0},null,null,null,null,{"$f":"'Blatt 1'!AC41","v":0},{"$f":"'Blatt 1'!AD41","v":0}]
[]
["2.2","Pacht- und Mieterträge des antragstellenden Unternehmens (BMELV-Code 2450 + 2451, etc.)"]
[null,null,null,null,null,null,null,null,null,null,null,null,null,null,null,null,null,null,null,{"$f":"ROUND((AC44*$I$16/100),0)","v":0},null,null,null,{"$f":"ROUND((AD44*$I$16/100),0)","v":0},null,null,null,null,{"$f":"'Blatt 1'!AC44","v":0},{"$f":"'Blatt 1'!AD44","v":0}]
[]
["2.3","Umsatzerlöse aus folgenden beteiligten Gewerbebetrieb (z.B. Bauernhofcafe, Ferienwohnungen, Pferdepension, Photovoltaik, Biogas, Maschineneinsatz):"]
[]
["a",null,null,null,null,null,null,null,null,null,null,null,null,null,null,null,null,null,null,{"$f":"ROUND(($I$16*AC48/100),0)","v":0},null,null,null,{"$f":"ROUND(($I$16*AD48/100),0)","v":0},null,null,null,null,{"$f":"'Blatt 1'!AC48","v":0},{"$f":"'Blatt 1'!AD48","v":0}]
[]
["b",null,null,null,null,null,null,null,null,null,null,null,null,null,null,null,null,null,null,{"$f":"ROUND((AC50),0)","v":0},null,null,null,{"$f":"ROUND((AD50),0)","v":0}]
[]
["2.4","Umsatzerlöse aus selbständiger Arbeit (z.B. freiberufliche Tätigkeiten wie Referententätigkeit)"]
[null,null,null,null,null,null,null,null,null,null,null,null,null,null,null,null,null,null,null,{"$f":"ROUND((AC53),0)","v":0},null,null,null,{"$f":"ROUND((AD53),0)","v":0}]
[]
[null,"Summe der Nrn. 2.1, 2.2 und 2.3 (= Summe 2)",null,null,null,null,null,null,null,null,null,null,null,null,null,null,null,null,null,{"$f":"T41+T44+T50+T48+T53","v":0},null,null,null,{"$f":"X41+X44+X50+X48+X53","v":0},null,null,null,null,{"$f":"AC41+AC44+AC48+AC50+AC53","v":0},{"$f":"AD41+AD44+AD48+AD50+AD53","v":0}]
[]
["Hinweise:"]
["1","Diese Anlage ist dann nicht auszufüllen."]
["2","Bei Nr. 1.2 darf nur eine Eintragung erfolgen, wenn diese Umsatzerlöse in die einkommenssteuerliche Einkunftsermittlung aus Land- und Forstwirtschaft des antragstellenden Unternehmens eingehen. Ansonsten sind diese Erlöse bei Nr. 2.2 zu erfassen."]
["·","Bei Gesellschaften (auch in Kooperationen) ist die Anlage für jeden Gesellschafter einzeln erforderlich. Auch für Gesellschafter deren Kapitalanteil kleiner als 5% ist, ist die Anlage erforderlich."]
["·","Bei Kooperationen sind alle Umsatzerlösen der beteiligten Kooperationspartner zu ermitteln."]
["·","Maßgeblich sind die im Durchschnitt der Berichtsjahre erzielten Umsatzerlöse. Es sind immer die kompletten Umsatzerlöse aus den Buchabschlüssen zu erfassen."]
[]
["·","Als Anlagen sind die der Berechnung zugrundeliegenden Jahresabschlüsse und die entsprechenden Gesellschaftsverträge/Kooperationsvereinbarungen vorzulegen."]
[]
[]
["Mir / uns ist bekannt, dass das ausgefüllte Formblatt als Nachweis zur Erfüllung der Zuwendungsberechtigung beim Direktor der Landwirtschaftskammer NRW als Landesbeauftragter - EU-Zahlstelle - vorgelegt wird."]
[]
[]
[]
[]
[null,{"$f":"'Blatt 1'!B72:G72","v":0}]
[null,"Ort, Datum",null,null,null,null,null,null,null,null,null,null,null,null,null,null,null,"Name Buchstelle, Stempel, Unterschrift Bearbeiter / -in"]

{"sheet":"Blatt 4","index":3,"n_rows":73,"n_cols":30,"rows_kept":73,"cut":false,"hidden":false,"merged":[[71,1,71,6],[59,1,59,29],[60,1,60,29],[61,1,62,29],[63,1,64,29],[54,1,54,16],[54,17,54,18],[54,19,54,22],[54,23,54,26],[57,1,57,29],[58,1,58,29],[50,19,50,22],[50,23,50,26],[51,1,52,18],[52,19,52,22],[52,23,52,26],[53,19,53,22],[53,23,53,26],[44,19,44,22],[44,23,44,26],[45,1,46,18],[45,19,45,22],[45,23,45,25],[49,1,49,17],[49,19,49,22],[41,19,41,22],[41,23,41,26],[42,1,43,18],[42,19,42,22],[42,23,42,26],[43,19,43,22],[43,23,43,26],[38,1,39,18],[38,19,38,22],[38,23,38,26],[40,1,40,17],[40,19,40,22],[40,23,40,26],[34,19,34,22],[34,23,34,26],[35,1,37,18],[35,19,35,22],[35,23,35,26],[36,19,36,22],[36,23,36,26],[37,19,37,22],[37,23,37,26],[32,19,32,22],[32,23,32,26],[33,1,33,16],[33,17,33,18],[33,19,33,22],[33,23,33,26],[28,1,29,18],[29,19,29,22],[29,23,29,26],[30,19,30,22],[30,23,30,26],[31,1,31,18],[31,19,31,22],[31,23,31,26],[20,19,20,22],[20,23,20,26],[25,19,25,22],[25,23,25,26],[26,19,26,22],[26,23,26,26],[27,19,27,22],[27,23,27,26],[21,1,22,18],[21,19,21,22],[21,23,21,26],[22,19,22,22],[22,23,22,26],[23,1,26,18],[23,19,23,22],[23,23,23,26],[24,19,24,22],[24,23,24,26],[0,0,0,2],[3,0,3,26],[6,2,6,26],[9,11,9,14],[9,15,9,16],[9,17,9,26],[66,0,67,29],[49,23,49,26],[15,28,15,29],[17,28,17,29],[18,28,18,29],[47,1,47,17],[47,19,47,22],[47,23,47,26],[48,19,48,22],[48,23,48,26],[10,17,10,26],[12,6,12,26],[15,8,15,9],[17,0,20,18],[17,19,17,26],[18,19,18,26],[19,19,19,22],[19,23,19,26]]}
["Anlage: ",null,null,"Berechnung der Umsatzerlöse aus bodengebundener Produktion"]
[null,null,null,"zum Antrag auf Gewährung von Zuwendungen zur Förderung der Diversifzierung"]
[]
[{"$f":"'Blatt 1'!A4:AA4","v":0}]
["Antragstellendes Unternehmen (Name, Vorname, ggf. Unternehmensbezeichnung)"]
[]
[null,null,"Der Unternehmer hat, außer der Bewirtschaftung des antragstellenden landwirtschaftlichen Unternehmens, keine weiteren Erlöse aus gewerblichen Nebenbetriebe, Gewerbebetrieb und/oder selbständiger Tätigkeit.1"]
[]
[]
[null,null,null,null,null,null,null,null,null,null,null,null,null,null,null,null,null,"Unternehmernummer Antragsteller"]
[null,null,null,null,null,null,null,null,null,null,null,null,null,null,null,null,null,{"$f":"'Blatt 1'!R11:AA11","v":0}]
[]
[]
[null,null,null,null,null,null,"(Name, Vorname)"]
[]
[null,null,null,null,null,null,null,"mit ",null,null,"% Anteil am antragstellendes Unternehmen"]
[]
["Der genannte antragstellende Einzelunternehmer / Gesellschafter\nhat folgende Umsatzerlöse aus dem antragstellenden Unternehmen:",null,null,null,null,null,null,null,null,null,null,null,null,null,null,null,null,null,null,"Wirtschaftsjahr",null,null,null,null,null,null,null,null,"Wirtschaftsjahr (100%)"]
[null,null,null,null,null,null,null,null,null,null,null,null,null,null,null,null,null,null,null,"EUR",null,null,null,null,null,null,null,null,{"$f":"T19","v":"EUR"}]
[null,null,null,null,null,null,null,null,null,null,null,null,null,null,null,null,null,null,null,"Vorjahr",null,null,null,"akt. Jahr",null,null,null,null,{"$f":"T20","v":"Vorjahr"},{"$f":"X20","v":"akt. Jahr"}]
[null,null,null,null,null,null,null,null,null,null,null,null,null,null,null,null,null,null,null,{"$f":"AC21","v":0},null,null,null,{"$f":"AD21","v":0}]
["1.","Umsatzerlöse im Rahmen der einkommensteuerrechtlichen Einkunftsermittlung aus Land- und Forstwirtschaft"]
[]
["1.1","Umsatzerlöse aus pflanzlichen oder tierischen Erzeugnissen, die durch Bodenbewirtschaftung oder durch mit Bodenbewirtschaftung verbundene Tierhaltung gemäß Bewertungsgesetz gewonnen werden inkl. Bestandsveränderung"]
[]
[]
[null,null,null,null,null,null,null,null,null,null,null,null,null,null,null,null,null,null,null,{"$f":"ROUND((AC27*$I$16/100),0)","v":0},null,null,null,{"$f":"ROUND((AD27*$I$16/100),0)","v":0}]
[]
["1.2","Umsatzerlöse aus Direktvermarktung land- und forstwirtschaftlicher Erzeugnisse, sonstigen Bereichen (Urlaub auf dem Bauerhof, außerbetrieblicher Maschineneinsatz)2"]
[null,null,null,null,null,null,null,null,null,null,null,null,null,null,null,null,null,null,null,{"$f":"ROUND((AC30*$I$16/100),0)","v":0},null,null,null,{"$f":"ROUND((AD30*$I$16/100),0)","v":0}]
[]
["1.3","Zulagen und Zuschüsse (BMELV-Code 2449, etc.):",null,null,null,null,null,null,null,null,null,null,null,null,null,null,null,null,null,{"$f":"ROUND((AC32*$I$16/100),0)","v":0},null,null,null,{"$f":"ROUND((AD32*$I$16/100),0)","v":0}]
[]
[null,"Summe der Nrn. 1.1 und 1.2 (= Summe 1)",null,null,null,null,null,null,null,null,null,null,null,null,null,null,null,null,null,{"$f":"T27+T30+T32","v":0},null,null,{"$f":"SUM(W27+#REF!+W32)","v":{"$error":"#REF!"}},{"$f":"X27+X30+X32","v":0},null,null,{"$f":"SUM(AA27+#REF!+AA32)","v":{"$error":"#REF!"}},null,{"$f":"AC27+AC30+AC32","v":0},{"$f":"AD27+AD30+AD32","v":0}]
[]
["2.","Umsatzerlöse im Rahmen der einkommensteuerrechtlichen Einkunfts-ermittlung aus Gewerbebetrieb und aus Land- und Forstwirtschaft ohne eigene Bodenbewirtschaftung"]
[]
[]
["2.1","gewerbliche Umsatzerlöse im landwirtschaftl. Betrieb aus Handel, Dienst-leistungen, Nebenbetriebe (z.B. Hofladen) (BMELV-Code 2320 - 2338, etc.):"]
[]
[null,null,null,null,null,null,null,null,null,null,null,null,null,null,null,null,null,null,null,{"$f":"ROUND((AC41*$I$16/100),0)","v":0},null,null,null,{"$f":"ROUND((AD41*$I$16/100),0)","v":0}]
[]
["2.2","Pacht- und Mieterträge des antragstellenden Unternehmens (BMELV-Code 2450 + 2451, etc.)"]
[null,null,null,null,null,null,null,null,null,null,null,null,null,null,null,null,null,null,null,{"$f":"ROUND((AC44*$I$16/100),0)","v":0},null,null,null,{"$f":"ROUND((AD44*$I$16/100),0)","v":0}]
[]
["2.3","Umsatzerlöse aus folgenden beteiligten Gewerbebetrieb (z.B. Bauernhofcafe, Ferienwohnungen, Pferdepension, Photovoltaik, Biogas, Maschineneinsatz):"]
[]
["a",null,null,null,null,null,null,null,null,null,null,null,null,null,null,null,null,null,null,{"$f":"ROUND(($I$16*AC48/100),0)","v":0},null,null,null,{"$f":"ROUND(($I$16*AD48/100),0)","v":0}]
[]
["b",null,null,null,null,null,null,null,null,null,null,null,null,null,null,null,null,null,null,{"$f":"ROUND((AC50),0)","v":0},null,null,null,{"$f":"ROUND((AD50),0)","v":0}]
[]
["2.4","Umsatzerlöse aus selbständiger Arbeit (z.B. freiberufliche Tätigkeiten wie Referententätigkeit)"]
[null,null,null,null,null,null,null,null,null,null,null,null,null,null,null,null,null,null,null,{"$f":"ROUND((AC53),0)","v":0},null,null,null,{"$f":"ROUND((AD53),0)","v":0}]
[]
[null,"Summe der Nrn. 2.1, 2.2 und 2.3 (= Summe 2)",null,null,null,null,null,null,null,null,null,null,null,null,null,null,null,null,null,{"$f":"T41+T44+T50+T48+T53","v":0},null,null,null,{"$f":"X41+X44+X50+X48+X53","v":0},null,null,null,null,{"$f":"AC41+AC44+AC50+AC48+AC53","v":0},{"$f":"AD41+AD44+AD50+AD48+AD53","v":0}]
[]
["Hinweise:"]
["1","Diese Anlage ist dann nicht auszufüllen."]
["2","Bei Nr. 1.2 darf nur eine Eintragung erfolgen, wenn diese Umsatzerlöse in die einkommenssteuerliche Einkunftsermittlung aus Land- und Forstwirtschaft des antragstellenden Unternehmens eingehen. Ansonsten sind diese Erlöse bei Nr. 2.2 zu erfassen."]
["·","Bei Gesellschaften (auch in Kooperationen) ist die Anlage für jeden Gesellschafter einzeln erforderlich. Auch für Gesellschafter deren Kapitalanteil kleiner als 5% ist, ist die Anlage erforderlich."]
["·","Bei Kooperationen sind alle Umsatzerlösen der beteiligten Kooperationspartner zu ermitteln."]
["·","Maßgeblich sind die im Durchschnitt der Berichtsjahre erzielten Umsatzerlöse. Es sind immer die kompletten Umsatzerlöse aus den Buchabschlüssen zu erfassen."]
[]
["·","Als Anlagen sind die der Berechnung zugrundeliegenden Jahresabschlüsse und die entsprechenden Gesellschaftsverträge/Kooperationsvereinbarungen vorzulegen."]
[]
[]
["Mir / uns ist bekannt, dass das ausgefüllte Formblatt als Nachweis zur Erfüllung der Zuwendungsberechtigung beim Direktor der Landwirtschaftskammer NRW als Landesbeauftragter - EU-Zahlstelle - vorgelegt wird."]
[]
[]
[]
[]
[]
[null,"Ort, Datum",null,null,null,null,null,null,null,null,null,null,null,null,null,null,null,"Name Buchstelle, Stempel, Unterschrift Bearbeiter / -in"]

{"sheet":"Blatt 5","index":4,"n_rows":73,"n_cols":30,"rows_kept":73,"cut":false,"hidden":false,"merged":[[23,1,26,18],[17,0,20,18],[17,19,17,26],[18,19,18,26],[19,19,19,22],[19,23,19,26],[20,19,20,22],[20,23,20,26],[21,1,22,18],[21,19,21,22],[21,23,21,26],[22,19,22,22],[22,23,22,26],[0,0,0,2],[3,0,3,26],[6,2,6,26],[9,11,9,14],[9,15,9,16],[9,17,9,26],[10,17,10,26],[12,6,12,26],[15,8,15,9],[23,19,23,22],[23,23,23,26],[24,19,24,22],[24,23,24,26],[25,19,25,22],[25,23,25,26],[26,19,26,22],[26,23,26,26],[27,19,27,22],[27,23,27,26],[28,1,29,18],[29,19,29,22],[29,23,29,26],[30,19,30,22],[30,23,30,26],[31,1,31,18],[31,19,31,22],[31,23,31,26],[32,19,32,22],[32,23,32,26],[33,1,33,16],[33,17,33,18],[33,19,33,22],[33,23,33,26],[34,19,34,22],[34,23,34,26],[35,1,37,18],[35,19,35,22],[35,23,35,26],[36,19,36,22],[36,23,36,26],[37,19,37,22],[37,23,37,26],[52,23,52,26],[43,19,43,22],[43,23,43,26],[38,1,39,18],[38,19,38,22],[38,23,38,26],[40,1,40,17],[40,19,40,22],[40,23,40,26],[45,1,46,18],[45,23,45,25],[49,1,49,17],[49,23,49,26],[71,1,71,6],[59,1,59,29],[60,1,60,29],[61,1,62,29],[63,1,64,29],[54,1,54,16],[54,17,54,18],[54,19,54,22],[54,23,54,26],[66,0,67,29],[17,28,17,29],[18,28,18,29],[45,19,45,21],[49,19,49,22],[57,1,57,29],[58,1,58,29],[50,19,50,22],[50,23,50,26],[51,1,52,18],[53,19,53,22],[53,23,53,26],[44,19,44,22],[44,23,44,26],[48,19,48,22],[48,23,48,26],[47,1,47,17],[47,19,47,22],[47,23,47,26],[41,19,41,22],[41,23,41,26],[42,1,43,18],[42,19,42,22],[42,23,42,26],[52,19,52,22]]}
["Anlage: ",null,null,"Berechnung der Umsatzerlöse aus bodengebundener Produktion"]
[null,null,null,"zum Antrag auf Gewährung von Zuwendungen zur Förderung der Diversifzierung"]
[]
[{"$f":"'Blatt 1'!A4:AA4","v":0}]
["Antragstellendes Unternehmen (Name, Vorname, ggf. Unternehmensbezeichnung)"]
[]
[null,null,"Der Unternehmer hat, außer der Bewirtschaftung des antragstellenden landwirtschaftlichen Unternehmens, keine weiteren Erlöse aus gewerblichen Nebenbetriebe, Gewerbebetrieb und/oder selbständiger Tätigkeit.1"]
[]
[]
[null,null,null,null,null,null,null,null,null,null,null,null,null,null,null,null,null,"Unternehmernummer Antragsteller"]
[null,null,null,null,null,null,null,null,null,null,null,null,null,null,null,null,null,{"$f":"'Blatt 1'!R11:AA11","v":0}]
[]
[]
[null,null,null,null,null,null,"(Name, Vorname)"]
[]
[null,null,null,null,null,null,null,"mit ",null,null,"% Anteil am antragstellendes Unternehmen"]
[]
["Der genannte antragstellende Einzelunternehmer / Gesellschafter\nhat folgende Umsatzerlöse aus dem antragstellenden Unternehmen:",null,null,null,null,null,null,null,null,null,null,null,null,null,null,null,null,null,null,"Wirtschaftsjahr",null,null,null,null,null,null,null,null,"Wirtschaftsjahr (100%)"]
[null,null,null,null,null,null,null,null,null,null,null,null,null,null,null,null,null,null,null,"EUR",null,null,null,null,null,null,null,null,{"$f":"T19","v":"EUR"}]
[null,null,null,null,null,null,null,null,null,null,null,null,null,null,null,null,null,null,null,"Vorjahr",null,null,null,"akt. Jahr",null,null,null,null,{"$f":"T20","v":"Vorjahr"},{"$f":"X20","v":"akt. Jahr"}]
[null,null,null,null,null,null,null,null,null,null,null,null,null,null,null,null,null,null,null,{"$f":"'Blatt 1'!T21:W21","v":0},null,null,null,{"$f":"'Blatt 1'!X21:AA21","v":0},null,null,null,null,{"$f":"'Blatt 1'!AC21","v":0},{"$f":"'Blatt 1'!AD21","v":0}]
["1.","Umsatzerlöse im Rahmen der einkommensteuerrechtlichen Einkunftsermittlung aus Land- und Forstwirtschaft"]
[]
["1.1","Umsatzerlöse aus pflanzlichen oder tierischen Erzeugnissen, die durch Bodenbewirtschaftung oder durch mit Bodenbewirtschaftung verbundene Tierhaltung gemäß Bewertungsgesetz gewonnen werden inkl. Bestandsveränderung"]
[]
[]
[null,null,null,null,null,null,null,null,null,null,null,null,null,null,null,null,null,null,null,{"$f":"ROUND((AC27*$I$16/100),0)","v":0},null,null,null,{"$f":"ROUND((AD27*$I$16/100),0)","v":0}]
[]
["1.2","Umsatzerlöse aus Direktvermarktung land- und forstwirtschaftlicher Erzeugnisse, sonstigen Bereichen (Urlaub auf dem Bauerhof, außerbetrieblicher Maschineneinsatz)2"]
[null,null,null,null,null,null,null,null,null,null,null,null,null,null,null,null,null,null,null,{"$f":"ROUND((AC30*$I$16/100),0)","v":0},null,null,null,{"$f":"ROUND((AD30*$I$16/100),0)","v":0}]
[]
["1.3","Zulagen und Zuschüsse (BMELV-Code 2449, etc.):",null,null,null,null,null,null,null,null,null,null,null,null,null,null,null,null,null,{"$f":"ROUND((AC32*$I$16/100),0)","v":0},null,null,null,{"$f":"ROUND((AD32*$I$16/100),0)","v":0}]
[]
[null,"Summe der Nrn. 1.1 und 1.2 (= Summe 1)",null,null,null,null,null,null,null,null,null,null,null,null,null,null,null,null,null,{"$f":"T27+T30+T32","v":0},null,null,{"$f":"SUM(W27+#REF!+W32)","v":{"$error":"#REF!"}},{"$f":"X27+X30+X32","v":0},null,null,{"$f":"SUM(AA27+#REF!+AA32)","v":{"$error":"#REF!"}},null,{"$f":"AC27+AC30+AC32","v":0},{"$f":"AD27+AD30+AD32","v":0}]
[]
["2.","Umsatzerlöse im Rahmen der einkommensteuerrechtlichen Einkunfts-ermittlung aus Gewerbebetrieb und aus Land- und Forstwirtschaft ohne eigene Bodenbewirtschaftung"]
[]
[]
["2.1","gewerbliche Umsatzerlöse im landwirtschaftl. Betrieb aus Handel, Dienst-leistungen, Nebenbetriebe (z.B. Hofladen) (BMELV-Code 2320 - 2338, etc.):"]
[]
[null,null,null,null,null,null,null,null,null,null,null,null,null,null,null,null,null,null,null,{"$f":"ROUND((AC41*$I$16/100),0)","v":0},null,null,null,{"$f":"ROUND((AD41*$I$16/100),0)","v":0}]
[]
["2.2","Pacht- und Mieterträge des antragstellenden Unternehmens (BMELV-Code 2450 + 2451, etc.)"]
[null,null,null,null,null,null,null,null,null,null,null,null,null,null,null,null,null,null,null,{"$f":"ROUND((AC44*$I$16/100),0)","v":0},null,null,null,{"$f":"ROUND((AD44*$I$16/100),0)","v":0}]
[]
["2.3","Umsatzerlöse aus folgenden beteiligten Gewerbebetrieb (z.B. Bauernhofcafe, Ferienwohnungen, Pferdepension, Photovoltaik, Biogas, Maschineneinsatz):"]
[]
["a",{"$f":"'Blatt 4'!B48:R48","v":0},null,null,null,null,null,null,null,null,null,null,null,null,null,null,null,null,null,{"$f":"ROUND(($I$16*AC48/100),0)","v":0},null,null,null,{"$f":"ROUND(($I$16*AD48/100),0)","v":0},null,null,null,null,{"$f":"'Blatt 4'!AC48","v":0},{"$f":"'Blatt 4'!AD48","v":0}]
[]
["b",null,null,null,null,null,null,null,null,null,null,null,null,null,null,null,null,null,null,{"$f":"ROUND((AC50),0)","v":0},null,null,null,{"$f":"ROUND((AD50),0)","v":0}]
[]
["2.4","Umsatzerlöse aus selbständiger Arbeit (z.B. freiberufliche Tätigkeiten wie Referententätigkeit)"]
[null,null,null,null,null,null,null,null,null,null,null,null,null,null,null,null,null,null,null,{"$f":"ROUND((AC53),0)","v":0},null,null,null,{"$f":"ROUND((AD53),0)","v":0}]
[]
[null,"Summe der Nrn. 2.1, 2.2 und 2.3 (= Summe 2)",null,null,null,null,null,null,null,null,null,null,null,null,null,null,null,null,null,{"$f":"T41+T44+T50+T48+T53","v":0},null,null,null,{"$f":"X41+X44+X50+X48+X53","v":0},null,null,null,null,{"$f":"AC41+AC44+AC50+AC48+AC53","v":0},{"$f":"AD41+AD44+AD50+AD48+AD53","v":0}]
[]
["Hinweise:"]
["1","Diese Anlage ist dann nicht auszufüllen."]
["2","Bei Nr. 1.2 darf nur eine Eintragung erfolgen, wenn diese Umsatzerlöse in die einkommenssteuerliche Einkunftsermittlung aus Land- und Forstwirtschaft des antragstellenden Unternehmens eingehen. Ansonsten sind diese Erlöse bei Nr. 2.2 zu erfassen."]
["·","Bei Gesellschaften (auch in Kooperationen) ist die Anlage für jeden Gesellschafter einzeln erforderlich. Auch für Gesellschafter deren Kapitalanteil kleiner als 5% ist, ist die Anlage erforderlich."]
["·","Bei Kooperationen sind alle Umsatzerlösen der beteiligten Kooperationspartner zu ermitteln."]
["·","Maßgeblich sind die im Durchschnitt der Berichtsjahre erzielten Umsatzerlöse. Es sind immer die kompletten Umsatzerlöse aus den Buchabschlüssen zu erfassen."]
[]
["·","Als Anlagen sind die der Berechnung zugrundeliegenden Jahresabschlüsse und die entsprechenden Gesellschaftsverträge/Kooperationsvereinbarungen vorzulegen."]
[]
[]
["Mir / uns ist bekannt, dass das ausgefüllte Formblatt als Nachweis zur Erfüllung der Zuwendungsberechtigung beim Direktor der Landwirtschaftskammer NRW als Landesbeauftragter - EU-Zahlstelle - vorgelegt wird."]
[]
[]
[]
[]
[null,{"$f":"'Blatt 4'!B72:G72","v":0}]
[null,"Ort, Datum",null,null,null,null,null,null,null,null,null,null,null,null,null,null,null,"Name Buchstelle, Stempel, Unterschrift Bearbeiter / -in"]

{"sheet":"Blatt 6","index":5,"n_rows":73,"n_cols":30,"rows_kept":73,"cut":false,"hidden":false,"merged":[[17,0,20,18],[17,19,17,26],[18,19,18,26],[19,19,19,22],[19,23,19,26],[20,19,20,22],[20,23,20,26],[21,1,22,18],[21,19,21,22],[21,23,21,26],[22,19,22,22],[22,23,22,26],[0,0,0,2],[3,0,3,26],[6,2,6,26],[9,11,9,14],[9,15,9,16],[9,17,9,26],[10,17,10,26],[12,6,12,26],[15,8,15,9],[23,1,26,18],[23,19,23,22],[23,23,23,26],[24,19,24,22],[24,23,24,26],[25,19,25,22],[25,23,25,26],[26,19,26,22],[26,23,26,26],[27,19,27,22],[27,23,27,26],[28,1,29,18],[29,19,29,22],[29,23,29,26],[30,19,30,22],[30,23,30,26],[31,1,31,18],[31,19,31,22],[31,23,31,26],[32,19,32,22],[32,23,32,26],[33,1,33,16],[33,17,33,18],[33,19,33,22],[33,23,33,26],[34,19,34,22],[34,23,34,26],[35,1,37,18],[35,19,35,22],[35,23,35,26],[36,19,36,22],[36,23,36,26],[37,19,37,22],[37,23,37,26],[45,19,45,22],[45,23,45,25],[49,1,49,17],[49,19,49,22],[38,1,39,18],[38,19,38,22],[38,23,38,26],[40,1,40,17],[40,19,40,22],[40,23,40,26],[49,23,49,26],[47,1,47,17],[47,19,47,22],[41,19,41,22],[41,23,41,26],[42,1,43,18],[42,19,42,22],[42,23,42,26],[43,19,43,22],[43,23,43,26],[47,23,47,26],[48,19,48,22],[48,23,48,26],[71,1,71,6],[61,1,62,29],[63,1,64,29],[66,0,67,29],[54,1,54,16],[54,17,54,18],[54,19,54,22],[54,23,54,26],[17,28,17,29],[18,28,18,29],[57,1,57,29],[58,1,58,29],[59,1,59,29],[60,1,60,29],[50,19,50,22],[50,23,50,26],[51,1,52,18],[52,19,52,22],[52,23,52,26],[53,19,53,22],[53,23,53,26],[44,19,44,22],[44,23,44,26],[45,1,46,18]]}
["Anlage: ",null,null,"Berechnung der Umsatzerlöse aus bodengebundener Produktion"]
[null,null,null,"zum Antrag auf Gewährung von Zuwendungen zur Förderung der Diversifzierung"]
[]
[{"$f":"'Blatt 1'!A4:AA4","v":0}]
["Antragstellendes Unternehmen (Name, Vorname, ggf. Unternehmensbezeichnung)"]
[]
[null,null,"Der Unternehmer hat, außer der Bewirtschaftung des antragstellenden landwirtschaftlichen Unternehmens, keine weiteren Erlöse aus gewerblichen Nebenbetriebe, Gewerbebetrieb und/oder selbständiger Tätigkeit.1"]
[]
[]
[null,null,null,null,null,null,null,null,null,null,null,null,null,null,null,null,null,"Unternehmernummer Antragsteller"]
[null,null,null,null,null,null,null,null,null,null,null,null,null,null,null,null,null,{"$f":"'Blatt 1'!R11:AA11","v":0}]
[]
[]
[null,null,null,null,null,null,"(Name, Vorname)"]
[]
[null,null,null,null,null,null,null,"mit ",null,null,"% Anteil am antragstellendes Unternehmen"]
[]
["Der genannte antragstellende Einzelunternehmer / Gesellschafter\nhat folgende Umsatzerlöse aus dem antragstellenden Unternehmen:",null,null,null,null,null,null,null,null,null,null,null,null,null,null,null,null,null,null,"Wirtschaftsjahr",null,null,null,null,null,null,null,null,"Wirtschaftsjahr (100%)"]
[null,null,null,null,null,null,null,null,null,null,null,null,null,null,null,null,null,null,null,"EUR",null,null,null,null,null,null,null,null,{"$f":"T19","v":"EUR"}]
[null,null,null,null,null,null,null,null,null,null,null,null,null,null,null,null,null,null,null,"Vorjahr",null,null,null,"akt. Jahr",null,null,null,null,{"$f":"T20","v":"Vorjahr"},{"$f":"X20","v":"akt. Jahr"}]
[null,null,null,null,null,null,null,null,null,null,null,null,null,null,null,null,null,null,null,{"$f":"'Blatt 1'!T21:W21","v":0},null,null,null,{"$f":"'Blatt 1'!X21:AA21","v":0},null,null,null,null,{"$f":"'Blatt 1'!AC21","v":0},{"$f":"'Blatt 1'!AD21","v":0}]
["1.","Umsatzerlöse im Rahmen der einkommensteuerrechtlichen Einkunftsermittlung aus Land- und Forstwirtschaft"]
[]
["1.1","Umsatzerlöse aus pflanzlichen oder tierischen Erzeugnissen, die durch Bodenbewirtschaftung oder durch mit Bodenbewirtschaftung verbundene Tierhaltung gemäß Bewertungsgesetz gewonnen werden inkl. Bestandsveränderung"]
[]
[]
[null,null,null,null,null,null,null,null,null,null,null,null,null,null,null,null,null,null,null,{"$f":"ROUND((AC27*$I$16/100),0)","v":0},null,null,null,{"$f":"ROUND((AD27*$I$16/100),0)","v":0}]
[]
["1.2","Umsatzerlöse aus Direktvermarktung land- und forstwirtschaftlicher Erzeugnisse, sonstigen Bereichen (Urlaub auf dem Bauerhof, außerbetrieblicher Maschineneinsatz)2"]
[null,null,null,null,null,null,null,null,null,null,null,null,null,null,null,null,null,null,null,{"$f":"ROUND((AC30*$I$16/100),0)","v":0},null,null,null,{"$f":"ROUND((AD30*$I$16/100),0)","v":0}]
[]
["1.3","Zulagen und Zuschüsse (BMELV-Code 2449, etc.):",null,null,null,null,null,null,null,null,null,null,null,null,null,null,null,null,null,{"$f":"ROUND((AC32*$I$16/100),0)","v":0},null,null,null,{"$f":"ROUND((AD32*$I$16/100),0)","v":0}]
[]
[null,"Summe der Nrn. 1.1 und 1.2 (= Summe 1)",null,null,null,null,null,null,null,null,null,null,null,null,null,null,null,null,null,{"$f":"T27+T30+T32","v":0},null,null,{"$f":"SUM(W27+#REF!+W32)","v":{"$error":"#REF!"}},{"$f":"X27+X30+X32","v":0},null,null,{"$f":"SUM(AA27+#REF!+AA32)","v":{"$error":"#REF!"}},null,{"$f":"AC27+AC30+AC32","v":0},{"$f":"AD27+AD30+AD32","v":0}]
[]
["2.","Umsatzerlöse im Rahmen der einkommensteuerrechtlichen Einkunfts-ermittlung aus Gewerbebetrieb und aus Land- und Forstwirtschaft ohne eigene Bodenbewirtschaftung"]
[]
[]
["2.1","gewerbliche Umsatzerlöse im landwirtschaftl. Betrieb aus Handel, Dienst-leistungen, Nebenbetriebe (z.B. Hofladen) (BMELV-Code 2320 - 2338, etc.):"]
[]
[null,null,null,null,null,null,null,null,null,null,null,null,null,null,null,null,null,null,null,{"$f":"ROUND((AC41*$I$16/100),0)","v":0},null,null,null,{"$f":"ROUND((AD41*$I$16/100),0)","v":0}]
[]
["2.2","Pacht- und Mieterträge des antragstellenden Unternehmens (BMELV-Code 2450 + 2451, etc.)"]
[null,null,null,null,null,null,null,null,null,null,null,null,null,null,null,null,null,null,null,{"$f":"ROUND((AC44*$I$16/100),0)","v":0},null,null,null,{"$f":"ROUND((AD44*$I$16/100),0)","v":0}]
[]
["2.3","Umsatzerlöse aus folgenden beteiligten Gewerbebetrieb (z.B. Bauernhofcafe, Ferienwohnungen, Pferdepension, Photovoltaik, Biogas, Maschineneinsatz):"]
[]
["a",{"$f":"'Blatt 5'!B48:R48","v":0},null,null,null,null,null,null,null,null,null,null,null,null,null,null,null,null,null,{"$f":"ROUND(($I$16*AC48/100),0)","v":0},null,null,null,{"$f":"ROUND(($I$16*AD48/100),0)","v":0}]
[]
["b",null,null,null,null,null,null,null,null,null,null,null,null,null,null,null,null,null,null,{"$f":"ROUND((AC50),0)","v":0},null,null,null,{"$f":"ROUND((AD50),0)","v":0}]
[]
["2.4","Umsatzerlöse aus selbständiger Arbeit (z.B. freiberufliche Tätigkeiten wie Referententätigkeit)"]
[null,null,null,null,null,null,null,null,null,null,null,null,null,null,null,null,null,null,null,{"$f":"ROUND((AC53),0)","v":0},null,null,null,{"$f":"ROUND((AD53),0)","v":0}]
[]
[null,"Summe der Nrn. 2.1, 2.2 und 2.3 (= Summe 2)",null,null,null,null,null,null,null,null,null,null,null,null,null,null,null,null,null,{"$f":"T41+T44+T50+T48+T53","v":0},null,null,null,{"$f":"X41+X44+X50+X48+X53","v":0},null,null,null,null,{"$f":"AC41+AC44+AC50+AC48+AC53","v":0},{"$f":"AD41+AD44+AD50+AD48+AD53","v":0}]
[]
["Hinweise:"]
["1","Diese Anlage ist dann nicht auszufüllen."]
["2","Bei Nr. 1.2 darf nur eine Eintragung erfolgen, wenn diese Umsatzerlöse in die einkommenssteuerliche Einkunftsermittlung aus Land- und Forstwirtschaft des antragstellenden Unternehmens eingehen. Ansonsten sind diese Erlöse bei Nr. 2.2 zu erfassen."]
["·","Bei Gesellschaften (auch in Kooperationen) ist die Anlage für jeden Gesellschafter einzeln erforderlich. Auch für Gesellschafter deren Kapitalanteil kleiner als 5% ist, ist die Anlage erforderlich."]
["·","Bei Kooperationen sind alle Umsatzerlösen der beteiligten Kooperationspartner zu ermitteln."]
["·","Maßgeblich sind die im Durchschnitt der Berichtsjahre erzielten Umsatzerlöse. Es sind immer die kompletten Umsatzerlöse aus den Buchabschlüssen zu erfassen."]
[]
["·","Als Anlagen sind die der Berechnung zugrundeliegenden Jahresabschlüsse und die entsprechenden Gesellschaftsverträge/Kooperationsvereinbarungen vorzulegen."]
[]
[]
["Mir / uns ist bekannt, dass das ausgefüllte Formblatt als Nachweis zur Erfüllung der Zuwendungsberechtigung beim Direktor der Landwirtschaftskammer NRW als Landesbeauftragter - EU-Zahlstelle - vorgelegt wird."]
[]
[]
[]
[]
[null,{"$f":"'Blatt 4'!B72:G72","v":0}]
[null,"Ort, Datum",null,null,null,null,null,null,null,null,null,null,null,null,null,null,null,"Name Buchstelle, Stempel, Unterschrift Bearbeiter / -in"]

{"sheet":"Zusammenfassung","index":6,"n_rows":72,"n_cols":27,"rows_kept":72,"cut":false,"hidden":false,"merged":[[6,15,6,16],[6,18,6,28],[7,18,7,28],[12,18,12,25],[11,26,15,28],[21,26,21,28],[20,26,20,28],[13,18,13,21],[16,1,18,16],[11,0,15,16],[9,20,9,22],[14,22,14,25],[9,1,9,2],[34,1,36,16],[26,26,26,28],[20,1,20,16],[20,18,20,21],[41,1,41,16],[22,1,22,16],[25,26,25,28],[26,1,26,16],[26,18,26,21],[26,22,26,25],[28,18,28,21],[27,26,27,28],[28,1,28,16],[24,26,24,28],[41,26,41,28],[39,26,39,28],[37,1,37,16],[37,18,37,21],[41,22,41,25],[45,1,45,16],[39,1,39,16],[39,18,39,21],[37,22,37,25],[43,22,43,25],[58,1,58,28],[50,26,50,28],[52,18,52,21],[52,22,52,25],[45,26,45,28],[47,1,47,16],[47,22,47,25],[47,18,47,21],[44,26,44,28],[52,1,52,16],[45,18,45,21],[45,22,45,25],[43,1,43,16],[64,0,65,28],[30,22,30,25],[30,18,30,21],[57,1,57,28],[59,1,60,28],[54,26,54,28],[52,26,52,28],[54,0,54,21],[54,22,54,25],[40,26,40,28],[41,18,41,21],[39,22,39,25],[38,26,38,28],[42,26,42,28],[43,26,43,28],[43,18,43,21],[0,0,0,2],[32,1,32,16],[3,0,3,28],[23,26,23,28],[22,18,22,21],[32,26,32,28],[32,22,32,25],[30,1,30,16],[14,18,14,21],[24,1,24,16],[22,22,22,25],[15,18,15,21],[22,26,22,28],[28,22,28,25],[6,11,6,14],[11,18,11,25],[70,1,70,6],[20,22,20,25],[13,22,13,25],[47,26,47,28],[37,26,37,28],[61,1,62,28],[50,1,50,16],[50,18,50,21],[29,26,29,28],[50,22,50,25],[32,18,32,21],[30,26,30,28],[15,22,15,25],[24,18,24,21],[24,22,24,25],[28,26,28,28]]}
["Anlage: ",null,null,"Zusammenfassende Berechnung der Umsatzerlöse aus bodengebundener Produktion"]
[null,null,null,"zum Antrag auf Gewährung von Zuwendungen zur Förderung der Diversifzierung"]
[]
[{"$f":"'Blatt 1'!A4","v":0}]
["Antragstellendes Unternehmen (Name, Vorname, ggf. Unternehmensbezeichnung)"]
[]
[null,null,null,null,null,null,null,null,null,null,null,null,null,null,null,null,null,null,"Unternehmernummer Antragsteller"]
[null,null,null,null,null,null,null,null,null,null,null,null,null,null,null,null,null,null,{"$f":"'Blatt 1'!R11","v":0}]
[]
[null,{"$f":"'Blatt 1'!I16+'Blatt 2'!I16+'Blatt 3'!I16+'Blatt 4'!I16+'Blatt 5'!I16+'Blatt 6'!I16","v":0},null,"% Summe angebenener Anteile am antragstellendes Unternehmen",null,null,null,null,null,null,null,null,null,null,null,null,null,null,null,null,null,null,null,null,null,{"$f":"IF(B10<>100,\"Fehler!\",\"\")","v":"Fehler!"}]
[]
["Der genannte antragstellende Einzelunternehmer / Gesellschafter\nhat folgende Umsatzerlöse:",null,null,null,null,null,null,null,null,null,null,null,null,null,null,null,null,null,"Wirtschaftsjahr",null,null,null,null,null,null,null,"Æ der Berichtsjahre"]
[null,null,null,null,null,null,null,null,null,null,null,null,null,null,null,null,null,"Blatt ","EUR"]
[null,null,null,null,null,null,null,null,null,null,null,null,null,null,null,null,null,null,"Vorjahr",null,null,null,"akt. Jahr"]
[null,null,null,null,null,null,null,null,null,null,null,null,null,null,null,null,null,null,{"$f":"'Blatt 1'!T21","v":0},null,null,null,{"$f":"'Blatt 1'!X21","v":0}]
[null,null,null,null,null,null,null,null,null,null,null,null,null,null,null,null,null,null,{"$f":"'Blatt 4'!T21","v":0},null,null,null,{"$f":"'Blatt 4'!X21","v":0}]
["1.","Summe Umsatzerlöse im Rahmen der einkommensteuerrecht-lichen Einkunftsermittlung aus Land- und Forstwirtschaft für (Name, Vorname)"]
[]
[]
[]
[null,{"$f":"'Blatt 1'!G13","v":0},null,null,null,null,null,null,null,null,null,null,null,null,null,null,null,1,{"$f":"'Blatt 1'!T34","v":0},null,null,null,{"$f":"'Blatt 1'!X34","v":0}]
[]
[null,{"$f":"'Blatt 2'!G13","v":0},null,null,null,null,null,null,null,null,null,null,null,null,null,null,null,2,{"$f":"'Blatt 2'!T34","v":0},null,null,null,{"$f":"'Blatt 2'!X34","v":0}]
[]
[null,{"$f":"'Blatt 3'!G13","v":0},null,null,null,null,null,null,null,null,null,null,null,null,null,null,null,3,{"$f":"'Blatt 3'!T34","v":0},null,null,null,{"$f":"'Blatt 3'!X34","v":0}]
[]
[null,{"$f":"'Blatt 4'!G13","v":0},null,null,null,null,null,null,null,null,null,null,null,null,null,null,null,4,{"$f":"'Blatt 4'!T34","v":0},null,null,null,{"$f":"'Blatt 4'!X34","v":0}]
[]
[null,{"$f":"'Blatt 5'!G13","v":0},null,null,null,null,null,null,null,null,null,null,null,null,null,null,null,5,{"$f":"'Blatt 5'!T34","v":0},null,null,null,{"$f":"'Blatt 5'!X34","v":0}]
[]
[null,{"$f":"'Blatt 6'!G13","v":0},null,null,null,null,null,null,null,null,null,null,null,null,null,null,null,6,{"$f":"'Blatt 6'!T34","v":0},null,null,null,{"$f":"'Blatt 6'!X34","v":0}]
[]
[null,"Summe der Nrn. 1.1 und 1.2 (= Summe 1)",null,null,null,null,null,null,null,null,null,null,null,null,null,null,null,null,{"$f":"SUM(S21:V32)","v":0},null,null,null,{"$f":"SUM(W21:Z32)","v":0},null,null,null,{"$f":"AVERAGE(S33:Z33)","v":0}]
[]
["2.","Umsatzerlöse im Rahmen der einkommensteuerrechtlichen Einkunftsermittlung aus Gewerbebetrieb und aus Land- und Forstwirtschaft ohne eigene Bodenbewirtschaftung für \n(Name, Vorname)"]
[]
[]
[null,{"$f":"'Blatt 1'!G13","v":0},null,null,null,null,null,null,null,null,null,null,null,null,null,null,null,1,{"$f":"'Blatt 1'!T55","v":0},null,null,null,{"$f":"'Blatt 1'!X55","v":0}]
[]
[null,{"$f":"'Blatt 2'!G13","v":0},null,null,null,null,null,null,null,null,null,null,null,null,null,null,null,2,{"$f":"'Blatt 2'!T55","v":0},null,null,null,{"$f":"'Blatt 2'!X55","v":0}]
[]
[null,{"$f":"'Blatt 3'!G13","v":0},null,null,null,null,null,null,null,null,null,null,null,null,null,null,null,3,{"$f":"'Blatt 3'!T55","v":0},null,null,null,{"$f":"'Blatt 3'!X55","v":0}]
[]
[null,{"$f":"'Blatt 4'!G13","v":0},null,null,null,null,null,null,null,null,null,null,null,null,null,null,null,4,{"$f":"'Blatt 4'!T55","v":0},null,null,null,{"$f":"'Blatt 4'!X55","v":0}]
[]
[null,{"$f":"'Blatt 5'!G13","v":0},null,null,null,null,null,null,null,null,null,null,null,null,null,null,null,5,{"$f":"'Blatt 5'!T55","v":0},null,null,null,{"$f":"'Blatt 5'!X55","v":0}]
[]
[null,{"$f":"'Blatt 6'!G13","v":0},null,null,null,null,null,null,null,null,null,null,null,null,null,null,null,6,{"$f":"'Blatt 6'!T55","v":0},null,null,null,{"$f":"'Blatt 6'!X55","v":0}]
[]
[]
[null,"Summe der Nrn. 2.1, 2.2 und 2.3 (= Summe 2)",null,null,null,null,null,null,null,null,null,null,null,null,null,null,null,null,{"$f":"SUM(S38:V50)","v":0},null,null,null,{"$f":"SUM(W38:Z50)","v":0},null,null,null,{"$f":"AVERAGE(S51:Z51)","v":0}]
[]
[null,"Gesamtsumme (= Summe 1 und Summe 2)",null,null,null,null,null,null,null,null,null,null,null,null,null,null,null,null,{"$f":"S33+S51","v":0},null,null,null,{"$f":"W33+W51","v":0},null,null,null,{"$f":"AA33+AA51","v":0}]
[]
["Der relative Anteil (Prozent) der Summe 1 an der vorgenannten Gesamtsumme beträgt:",null,null,null,null,null,null,null,null,null,null,null,null,null,null,null,null,null,null,null,null,null,{"$f":"IF(AA55>25%,\"LUF > 25%\",\"LUF < 25%\")","v":"LUF > 25%"},null,null,null,{"$f":"IF(AA53>0,SUM(AA33/AA53),\"\")","v":""}]
[]
["Hinweise:"]
["·","Bei Gesellschaften (auch in Kooperationen) ist die Anlage für jeden Gesellschafter einzeln erforderlich. Auch für Gesellschafter deren Kapitalanteil kleiner als 5% ist, ist die Anlage erforderlich."]
["·","Bei Kooperationen sind alle Umsatzerlösen der beteiligten Kooperationspartner zu ermitteln."]
["·","Maßgeblich sind die im Durchschnitt der Berichtsjahre erzielten Umsatzerlöse. Es sind immer die kompletten Umsatzerlöse aus den Buchabschlüssen zu erfassen."]
[]
["·","Als Anlagen sind die der Berechnung zugrundeliegenden Jahresabschlüsse und die entsprechenden Gesellschaftsverträge/Kooperationsvereinbarungen vorzulegen."]
[]
[]
["Mir / uns ist bekannt, dass das ausgefüllte Formblatt als Nachweis zur Erfüllung der Zuwendungsberechtigung beim Direktor der Landwirtschaftskammer NRW als Landesbeauftragter - EU-Zahlstelle - vorgelegt wird."]
[]
[]
[]
[]
[]
[]
[null,"Ort, Datum",null,null,null,null,null,null,null,null,null,null,null,null,null,null,null,"Name Buchstelle, Stempel, Unterschrift Bearbeiter / -in"]